fUSD/lending_fUSD_20251025
["ID","MTS","AMOUNT","RATE_DAILY","PERIOD"]
[392345094,1761379841334,-506.12573833,0.00034273,5]
[392345095,1761379841345,-500.0,0.00034273,5]
[392345096,1761379841355,-503.42247773,0.00034273,5]
[392345097,1761379841364,-500.0,0.00034273,5]
[392345098,1761379841374,-500.0,0.00034276,30]
[392345099,1761379841384,-151.0,0.00034277,14]
[392345100,1761379841394,-1874.95762285,0.00034279,2]
[392345101,1761379841404,-61702.53684019,0.0003428,2]
[392345102,1761379841415,-151.0,0.0003428,30]
[392345103,1761379841427,-283.124772,0.0003428,30]
[392345104,1761379841439,-24374.4490971,0.0003428,2]
[392345105,1761379841450,-500.0,0.00034288,2]
[392345106,1761379841459,-1231.07240498,0.00034289,30]
[392345107,1761379841470,-500.0,0.00034289,2]
[392345108,1761379841480,-457.13629252,0.00034289,2]
[392345109,1761379841490,-164.96209115,0.0003429,2]
[392345110,1761379841501,-150.64,0.0003429,2]
[392345111,1761379841511,-150.64,0.0003429,2]
[392345112,1761379841521,-150.64,0.0003429,2]
[392345113,1761379841531,-150.64,0.0003429,2]
[392345114,1761379841541,-500.0,0.00034299,30]
[392345115,1761379841551,-500.0,0.00034299,30]
[392345116,1761379841561,-500.0,0.00034299,30]
[392345117,1761379841571,-500.0,0.00034299,30]
[392345118,1761379841581,-574.11961455,0.00034299,120]
[392345119,1761379841591,-500.0,0.00034299,30]
[392345120,1761379841601,-500.0,0.00034299,30]
[392345121,1761379841611,-500.0,0.00034299,30]
[392345122,1761379841620,-500.0,0.00034299,30]
[392345123,1761379841630,-1089.0,0.000343,5]
[392345124,1761379841640,-730257.52517563,0.000343,3]
[392345129,1761379846016,-150.0,0.000334,3]
[392345130,1761379846028,-2026.64433084,0.000343,3]
[392345131,1761379863824,151.0,0.00017786,2]
[392345132,1761379880191,151.0,0.00017767,2]
[392345133,1761379897045,151.0,0.00017738,2]
[392345134,1761379913433,151.0,0.00017724,2]
[392345135,1761379929805,151.0,0.00017726,2]
[392345136,1761379931373,250.0,0.00036701,30]
[392345137,1761379931997,250.0,0.00036701,30]
[392345138,1761379932677,250.0,0.00036701,30]
[392345139,1761379933343,250.0,0.00036701,30]
[392345140,1761379933999,250.0,0.00036701,30]
[392345141,1761379934772,250.0,0.00036701,30]
[392345142,1761379935533,250.0,0.00036701,30]
[392345143,1761379935992,250.0,0.00036701,30]
[392345144,1761379946167,151.0,0.00017833,2]
[392345145,1761379962567,151.0,0.00017969,2]
[392345146,1761380007958,-151.0,0.00018097,2]
[392345147,1761380007978,-140.36668659,0.0001822,2]
[392345149,1761380143043,-151.0,0.00018137,2]
[392345150,1761380143066,-68.36,0.00018258,2]
[392345151,1761380157946,-151.0,0.0001809,2]
[392345152,1761380157968,-41.31659931,0.00018258,2]
[392345153,1761380188426,-151.0,0.00018064,2]
[392345154,1761380188449,-68.52664832,0.00018088,2]
[392345155,1761380202983,-82.47335168,0.00018088,2]
[392345156,1761380203005,-131.90833323,0.0001812,2]
[392345157,1761380228324,3510.13875029,7.945e-05,2]
[392345158,1761380228345,1433.48092771,7.945e-05,2]
[392345159,1761380395942,-151.0,0.00018229,2]
[392345160,1761380395968,-151.0,0.00018274,2]
[392345161,1761380395994,-151.0,0.00018339,2]
[392345162,1761380396019,-151.0,0.00018383,2]
[392345163,1761380398260,151.0,0.00018189,2]
[392345165,1761380414669,151.0,0.00018162,2]
[392345166,1761380431097,151.0,0.00018165,2]
[392345167,1761380447752,151.0,0.00018192,2]
[392345168,1761380464514,151.0,0.00018221,2]
[392345169,1761380480894,151.0,0.00018265,2]
[392345170,1761380497592,151.0,0.00018312,2]
[392345171,1761380513954,151.0,0.0001833,2]
[392345172,1761380530311,151.0,0.0001834,2]
[392345173,1761380546773,151.0,0.00018403,2]
[392345174,1761380563171,151.0,0.00018522,2]
[392345175,1761380580192,151.0,0.00018638,2]
[392345176,1761380596622,151.0,0.00018758,2]
[392345177,1761380613127,151.0,0.00018881,2]
[392345178,1761380629534,151.0,0.00019046,2]
[392345179,1761380645943,151.0,0.00019137,2]
[392345180,1761380662345,151.0,0.00019143,2]
[392345181,1761380679248,151.0,0.00019142,2]
[392345182,1761380695662,151.0,0.00019147,2]
[392345183,1761380707780,46527.0,0.00015,2]
[392345184,1761380707804,3566.51907229,0.00015,2]
[392345185,1761380707832,3487.0801658,0.00015,2]
[392345186,1761380707854,15000.0,0.00015,2]
[392345187,1761380707875,15000.0,0.00015,2]
[392345188,1761380707896,15000.0,0.00015,2]
[392345189,1761380707917,15000.0,0.00015,2]
[392345190,1761380707941,15000.0,0.00015,2]
[392345191,1761380707963,15000.0,0.00015,2]
[392345192,1761380707983,15000.0,0.00015,2]
[392345193,1761380708004,15000.0,0.00015,2]
[392345194,1761380708026,15000.0,0.00015,2]
[392345195,1761380708047,15000.0,0.00015,2]
[392345196,1761380708071,15000.0,0.00015,2]
[392345197,1761380708092,15000.0,0.00015,2]
[392345198,1761380708113,15000.0,0.00015,2]
[392345199,1761380708135,15000.0,0.00015,2]
[392345200,1761380708160,15000.0,0.00015,2]
[392345201,1761380708183,15000.0,0.00015,2]
[392345202,1761380708206,15000.0,0.00015,2]
[392345203,1761380708230,15000.0,0.00015,2]
[392345204,1761380708253,15000.0,0.00015,2]
[392345205,1761380708276,15000.0,0.00015,2]
[392345206,1761380708298,15000.0,0.00015,2]
[392345207,1761380708320,15000.0,0.00015,2]
[392345208,1761380708342,15000.0,0.00015,2]
[392345209,1761380708365,15000.0,0.00015,2]
[392345210,1761380708393,15000.0,0.00015,2]
[392345211,1761380708415,15000.0,0.00015,2]
[392345212,1761380708437,15000.0,0.00015,2]
[392345213,1761380708460,10602.12426418,0.00015,2]
[392345215,1761380745983,6528.4699693,0.0001995,15]
[392345216,1761380761309,4397.87573582,8e-05,2]
[392345217,1761380761329,467.76388163,8e-05,2]
[392345218,1761380816107,5000.00085772,0.000162,5]
[392345219,1761380860252,18829.04649235,0.0002,5]
[392345222,1761380866615,2188.83131063,0.00013,2]
[392345223,1761380873315,12343.40480774,0.00015,2]
[392345224,1761380873336,15000.0,0.00015,2]
[392345225,1761380873358,15000.0,0.00015,2]
[392345226,1761380873378,15000.0,0.00015,2]
[392345227,1761380873398,15000.0,0.00015,2]
[392345228,1761380873419,15000.0,0.00015,2]
[392345229,1761380873440,15000.0,0.00015,2]
[392345230,1761380873464,15000.0,0.00015,2]
[392345231,1761380873484,15000.0,0.00015,2]
[392345232,1761380873505,15000.0,0.00015,2]
[392345233,1761380873525,15000.0,0.00015,2]
[392345234,1761380873546,15000.0,0.00015,2]
[392345235,1761380873567,15000.0,0.00015,2]
[392345236,1761380873588,15000.0,0.00015,2]
[392345237,1761380873612,15000.0,0.00015,2]
[392345238,1761380873632,15000.0,0.00015,2]
[392345239,1761380873652,15000.0,0.00015,2]
[392345240,1761380873673,15000.0,0.00015,2]
[392345241,1761380873693,15000.0,0.00015,2]
[392345242,1761380873713,15000.0,0.00015,2]
[392345243,1761380873733,15000.0,0.00015,2]
[392345244,1761380873754,15000.0,0.00015,2]
[392345245,1761380873774,15000.0,0.00015,2]
[392345246,1761380873793,15000.0,0.00015,2]
[392345247,1761380873814,2656.59519226,0.00015,2]
[392345248,1761380874396,-285.90082933,0.00018,2]
[392345258,1761380919631,449.55479947,0.0001,2]
[392345262,1761380997951,-157.77310367,0.0001606,2]
[392345263,1761381002408,-40.53689633,0.0001606,2]
[392345264,1761381002430,-112.16927585,0.00016905,2]
[392345265,1761381004520,-86.14072415,0.00016905,2]
[392345266,1761381004543,-177.77833035,0.0001775,2]
[392345275,1761381031732,-20.53166965,0.0001775,2]
[392345276,1761381031741,-1161.02838064,0.00018,2]
[392345277,1761381031750,-198.31,0.00018595,2]
[392345278,1761381031759,-151.0,0.00019318,2]
[392345279,1761381031768,-198.31,0.00019441,2]
[392345280,1761381031777,-198.31,0.00020286,2]
[392345281,1761381031786,-308.61609112,0.00020999,2]
[392345282,1761381031795,-186.43945003,0.00020999,2]
[392345283,1761381031803,-160.1301825,0.00021,2]
[392345284,1761381031814,-1296.60699386,0.00021,2]
[392345285,1761381031825,-440.56810984,0.00021,2]
[392345286,1761381031836,-457.90404937,0.00021,2]
[392345287,1761381031846,-1500.0,0.00021,2]
[392345288,1761381031864,-224.2118273,0.00021,2]
[392345289,1761381031873,-198.31,0.00021131,2]
[392345290,1761381031882,-198.31,0.00021977,2]
[392345291,1761381031891,-198.31,0.00022822,2]
[392345292,1761381031900,-198.31,0.00023667,2]
[392345293,1761381031908,-198.31,0.00024512,2]
[392345294,1761381031917,-198.31,0.00025358,2]
[392345295,1761381031926,-198.31,0.00026203,2]
[392345296,1761381031935,-1200.0,0.00027047,2]
[392345297,1761381031944,-198.31,0.00027048,2]
[392345298,1761381031953,-198.31,0.00027893,2]
[392345299,1761381031962,-198.31,0.00028739,2]
[392345300,1761381031971,-800.0,0.00029368,2]
[392345301,1761381031980,-198.31,0.00029584,2]
[392345302,1761381031988,-519.63183188,0.0003,2]
[392345303,1761381031997,-198.31,0.00030429,2]
[392345304,1761381032006,-2054.0,0.00031191,2]
[392345305,1761381032018,-6541.0,0.00031191,2]
[392345306,1761381032030,-819.0,0.00031191,2]
[392345307,1761381032042,-198.31,0.00031274,2]
[392345308,1761381032054,-327.0,0.00031396,3]
[392345310,1761381032066,-185.0,0.00031396,7]
[392345312,1761381032076,-185.0,0.00031876,2]
[392345315,1761381032086,-198.31,0.0003212,2]
[392345317,1761381032096,-1475.16358349,0.00032423,2]
[392345323,1761381032148,-4221.20368375,0.00032423,2]
[392345326,1761381032160,-1000.0,0.00032423,2]
[392345328,1761381032171,-2212.56066939,0.00032423,2]
[392345330,1761381032184,-287.43933061,0.00032423,2]
[392345333,1761381032195,-151.0,0.00032504,2]
[392345335,1761381032205,-151.0,0.00032504,2]
[392345337,1761381032215,-151.0,0.00032504,2]
[392345339,1761381032224,-151.0,0.00032504,2]
[392345341,1761381032236,-151.0,0.00032504,2]
[392345343,1761381032248,-151.0,0.00032504,2]
[392345345,1761381032259,-151.0,0.00032504,2]
[392345347,1761381032270,-151.0,0.00032504,2]
[392345350,1761381032281,-151.0,0.00032504,2]
[392345352,1761381032292,-151.0,0.00032504,2]
[392345354,1761381032303,-151.0,0.00032504,2]
[392345356,1761381032315,-151.0,0.00032504,2]
[392345359,1761381032326,-151.0,0.00032504,2]
[392345361,1761381032338,-151.0,0.00032504,2]
[392345363,1761381032349,-151.0,0.00032504,2]
[392345365,1761381032360,-151.0,0.00032504,2]
[392345367,1761381032370,-151.0,0.00032504,2]
[392345370,1761381032382,-151.0,0.00032504,2]
[392345372,1761381032393,-582.08155042,0.00032522,32]
[392345402,1761381040472,-151.0,0.00018811,2]
[392345403,1761381040483,-144.72371386,0.00031191,2]
[392345405,1761381043134,-3343.27628614,0.00031191,2]
[392345406,1761381043142,-89.29944958,0.00032522,32]
[392345407,1761381043151,-199.65038998,0.00032522,2]
[392345408,1761381043160,-196.91942642,0.00032522,2]
[392345409,1761381043169,-558.56454537,0.00032522,2]
[392345410,1761381043178,-197.70545219,0.00032522,2]
[392345411,1761381043186,-192974.5116,0.00032523,2]
[392345412,1761381043195,-1000.0,0.00032523,2]
[392345413,1761381043204,-809.6714867,0.00032523,2]
[392345414,1761381043213,-152.0,0.00032672,3]
[392345415,1761381043222,-9386.42,0.00032781,2]
[392345416,1761381043231,-5699.0,0.00032903,2]
[392345417,1761381043240,-168.0,0.00032919,2]
[392345418,1761381043251,-250.0,0.00032981,2]
[392345419,1761381043260,-483.0,0.00032987,2]
[392345420,1761381043268,-4823.11208869,0.00033,2]
[392345421,1761381043277,-483.0,0.0003312,2]
[392345422,1761381043286,-168.0,0.00033166,2]
[392345423,1761381043295,-5696.36726721,0.00033193,2]
[392345424,1761381043304,-606.0,0.00033246,2]
[392345425,1761381043313,-1312.0,0.00033246,2]
[392345426,1761381043324,-1592.0,0.00033246,2]
[392345427,1761381043333,-1270.0,0.00033246,2]
[392345428,1761381043342,-818.0,0.00033246,2]
[392345429,1761381043351,-1185.0,0.00033246,2]
[392345430,1761381043360,-903.0,0.00033246,2]
[392345431,1761381043369,-168.0,0.00033447,2]
[392345432,1761381043378,-666.0,0.00033623,3]
[392345433,1761381043387,-500.0,0.00033699,30]
[392345435,1761381043396,-1215.0,0.000337,2]
[392345436,1761381043405,-168.0,0.00033719,2]
[392345437,1761381043413,-483.0,0.00033834,7]
[392345438,1761381043422,-168.0,0.00033892,2]
[392345439,1761381043431,-5696.36726721,0.00033963,2]
[392345440,1761381043440,-168.0,0.00033998,7]
[392345441,1761381043449,-193.7995722,0.00034,7]
[392345442,1761381043458,-200.0,0.00034016,10]
[392345443,1761381043467,-775.00519589,0.00034169,2]
[392345444,1761381043476,-268.48833745,0.00034173,2]
[392345445,1761381043485,-2054.0,0.00034191,2]
[392345446,1761381043494,-6541.0,0.00034191,2]
[392345447,1761381043502,-819.0,0.00034191,2]
[392345448,1761381043511,-3488.0,0.00034191,2]
[392345449,1761381043520,-14039.46138933,0.00034212,2]
[392345450,1761381043529,-151.16919267,0.00034212,15]
[392345451,1761381043538,-300.0,0.00034216,2]
[392345452,1761381043546,-152.0,0.00034229,4]
[392345453,1761381043556,-5611.3584473,0.00034258,2]
[392345454,1761381043565,-500.0,0.00034273,5]
[392345455,1761381043574,-500.0,0.00034273,2]
[392345456,1761381043583,-500.0,0.00034273,5]
[392345457,1761381043592,-500.0,0.00034273,5]
[392345458,1761381043601,-500.0,0.00034273,5]
[392345459,1761381043610,-500.0,0.00034273,5]
[392345460,1761381043620,-476.87708629,0.00034273,5]
[392345461,1761381043629,-500.0,0.00034273,5]
[392345462,1761381043639,-500.0,0.00034273,5]
[392345463,1761381043649,-500.0,0.00034273,2]
[392345464,1761381043659,-500.0,0.00034273,5]
[392345465,1761381043668,-500.0,0.00034273,5]
[392345466,1761381043677,-505.17451057,0.00034273,5]
[392345467,1761381043686,-500.0,0.00034273,5]
[392345468,1761381043695,-504.13950078,0.00034273,5]
[392345469,1761381043704,-500.0,0.00034273,5]
[392345470,1761381043713,-500.0,0.00034276,30]
[392345471,1761381043722,-126221.786665,0.0003429,2]
[392345472,1761381043731,-56632.1681544,0.0003429,2]
[392345473,1761381043740,-500.0,0.00034299,30]
[392345474,1761381043749,-500.0,0.00034299,30]
[392345475,1761381043758,-176.55999593,0.00034299,30]
[392345476,1761381043768,-500.0,0.00034299,30]
[392345477,1761381043777,-1000.0,0.00034299,8]
[392345478,1761381043786,-267715.83049253,0.000343,3]
[392345479,1761381043795,-151.0,0.000343,30]
[392345480,1761381043804,-265.652,0.00034312,2]
[392345481,1761381043813,-500.0,0.00034331,30]
[392345482,1761381043822,-500.0,0.00034386,30]
[392345483,1761381043831,-168.0,0.0003444,2]
[392345484,1761381043839,-500.0,0.0003444,30]
[392345485,1761381043848,-12622.1786665,0.0003445,2]
[392345486,1761381043857,-11326.4336309,0.0003445,2]
[392345487,1761381043865,-150.0,0.00034455,7]
[392345488,1761381043874,-5000.0,0.0003446,2]
[392345489,1761381043883,-507.25054763,0.00034495,30]
[392345490,1761381043892,-12622.1786665,0.0003455,2]
[392345491,1761381043901,-11326.4336309,0.0003455,2]
[392345492,1761381043910,-22958.8928607,0.0003456,2]
[392345493,1761381043919,-150.0,0.00034585,7]
[392345494,1761381043927,-150.99,0.00034649,2]
[392345495,1761381043937,-1661.6,0.00034649,90]
[392345496,1761381043948,-150.0,0.00034694,7]
[392345497,1761381043957,-150.0,0.00034694,7]
[392345498,1761381043965,-168.0,0.00034715,2]
[392345499,1761381043975,-11326.4336309,0.00034723,2]
[392345500,1761381043984,-5696.36726721,0.00034733,2]
[392345501,1761381043993,-14039.46138927,0.00034783,2]
[392345502,1761381044011,-11326.4336309,0.00034891,2]
[392345503,1761381044022,-12622.1786665,0.000349,2]
[392345504,1761381044032,-166.66,0.00034903,2]
[392345505,1761381044044,-168.0,0.0003491,7]
[392345506,1761381044056,-150.0,0.00034912,7]
[392345507,1761381044065,-11326.4336309,0.0003498,2]
[392345508,1761381044075,-25244.3573329,0.0003499,2]
[392345509,1761381044084,-22652.8672618,0.0003499,2]
[392345510,1761381044094,-150.0,0.00034993,7]
[392345511,1761381044104,-150.0,0.00034993,7]
[392345512,1761381044113,-500.0,0.00034999,30]
[392345513,1761381044123,-350.0,0.00035,30]
[392345514,1761381044132,-250.0,0.00035,7]
[392345515,1761381044141,-7287.90297324,0.00035,10]
[392345516,1761381044151,-2000.0,0.00035,2]
[392345517,1761381044161,-2000.0,0.00035,2]
[392345518,1761381044171,-2000.0,0.00035,2]
[392345519,1761381044180,-2000.0,0.00035,2]
[392345520,1761381044192,-2000.0,0.00035,2]
[392345521,1761381044203,-2000.0,0.00035,2]
[392345522,1761381044213,-869.76,0.00035,2]
[392345523,1761381044222,-739.51,0.00035,2]
[392345524,1761381044231,-2000.0,0.00035,2]
[392345525,1761381044241,-2000.0,0.00035,2]
[392345526,1761381044250,-223.88,0.00035,2]
[392345527,1761381044259,-23526.4502263,0.00035,2]
[392345528,1761381044269,-599.999999,0.00035,2]
[392345529,1761381044279,-168.0,0.00035,2]
[392345530,1761381044288,-168.0,0.00035054,2]
[392345531,1761381044297,-150.0,0.00035173,7]
[392345532,1761381044306,-150.0,0.00035238,7]
[392345533,1761381044315,-168.0,0.00035255,2]
[392345534,1761381044325,-150.0,0.00035292,7]
[392345535,1761381044334,-150.0,0.00035292,7]
[392345536,1761381044344,-1000.0,0.0003533,2]
[392345537,1761381044356,-5888.0,0.00035338,2]
[392345538,1761381044366,-11326.4336309,0.00035344,2]
[392345539,1761381044375,-14039.46138927,0.00035354,2]
[392345540,1761381044384,-299.99459039,0.000354,2]
[392345541,1761381044393,-303.04,0.00035413,2]
[392345542,1761381044403,-11326.4336309,0.00035483,2]
[392345543,1761381044412,-12622.1786665,0.00035492,2]
[392345544,1761381044422,-500.0,0.00035498,30]
[392345545,1761381044432,-5696.36726721,0.00035503,2]
[392345546,1761381044441,-500.0,0.0003553,30]
[392345547,1761381044452,-500.0,0.00035532,30]
[392345548,1761381044463,-500.0,0.00035561,30]
[392345549,1761381044473,-268.48833743,0.00035563,2]
[392345550,1761381044483,-150.0,0.00035564,7]
[392345551,1761381044493,-300.0,0.00035586,2]
[392345552,1761381044502,-168.0,0.00035588,2]
[392345553,1761381044511,-500.0,0.00035601,30]
[392345554,1761381044521,-1000.0,0.00035604,2]
[392345555,1761381044530,-500.0,0.00035616,30]
[392345556,1761381044539,-500.0,0.00035669,30]
[392345557,1761381044549,-1000.0,0.00035692,2]
[392345558,1761381044558,-962.07699342,0.00035697,8]
[392345559,1761381044568,-11326.4336309,0.00035704,2]
[392345560,1761381044578,-500.0,0.00035714,7]
[392345561,1761381044588,-500.0,0.00035714,7]
[392345562,1761381044597,-500.0,0.00035714,7]
[392345563,1761381044607,-513.53,0.00035714,7]
[392345564,1761381044617,-500.0,0.00035714,7]
[392345565,1761381044627,-376.33,0.00035714,7]
[392345566,1761381044636,-500.0,0.00035714,7]
[392345567,1761381044646,-500.0,0.00035714,7]
[392345568,1761381044656,-500.0,0.00035714,7]
[392345569,1761381044666,-500.0,0.00035714,7]
[392345570,1761381044675,-500.0,0.00035714,7]
[392345571,1761381044687,-500.0,0.00035714,7]
[392345572,1761381044699,-500.0,0.00035714,7]
[392345573,1761381044708,-500.0,0.00035714,7]
[392345574,1761381044718,-500.0,0.00035714,7]
[392345575,1761381044728,-500.0,0.00035714,7]
[392345576,1761381044738,-500.0,0.00035714,7]
[392345577,1761381044748,-500.0,0.00035714,7]
[392345578,1761381044758,-507.21,0.00035714,7]
[392345579,1761381044769,-500.0,0.00035714,7]
[392345580,1761381044778,-500.0,0.00035714,7]
[392345581,1761381044788,-500.0,0.00035714,7]
[392345582,1761381044797,-155.291273,0.00035714,30]
[392345583,1761381044807,-872.0,0.00035746,5]
[392345584,1761381044816,-152.0,0.00035786,5]
[392345585,1761381044825,-500.0,0.00035786,30]
[392345586,1761381044834,-1003.43,0.000358,30]
[392345587,1761381044844,-168.0,0.00035819,2]
[392345588,1761381044853,-151.15,0.00035824,2]
[392345589,1761381044863,-1000.0,0.00035878,2]
[392345590,1761381044875,-12622.1786665,0.0003588,2]
[392345591,1761381044885,-11326.4336309,0.0003588,2]
[392345592,1761381044895,-168.0,0.00035883,2]
[392345593,1761381044906,-523.7,0.0003589,30]
[392345594,1761381044915,-150.00000001,0.0003589,7]
[392345595,1761381044928,-150.83424675,0.0003589,7]
[392345596,1761381044938,-150.0,0.0003589,7]
[392345597,1761381044947,-157.2184677,0.0003589,7]
[392345598,1761381044957,-150.0,0.0003589,7]
[392345599,1761381044967,-150.00000001,0.0003589,7]
[392345600,1761381044977,-150.0,0.0003589,7]
[392345601,1761381044988,-150.0,0.0003589,7]
[392345602,1761381044997,-150.0,0.0003589,7]
[392345603,1761381045007,-150.0,0.0003589,7]
[392345604,1761381045018,-500.0,0.00035894,30]
[392345605,1761381045027,-319.21439886,0.000359,2]
[392345606,1761381045037,-500.0,0.000359,13]
[392345607,1761381045047,-14039.46138927,0.00035925,2]
[392345608,1761381045056,-500.0,0.00035945,30]
[392345609,1761381045065,-500.0,0.00035959,30]
[392345610,1761381045074,-500.0,0.00035963,30]
[392345611,1761381045083,-502.73140897,0.00035973,5]
[392345612,1761381045093,-500.0,0.00035973,5]
[392345613,1761381045102,-504.58860067,0.00035973,5]
[392345614,1761381045112,-500.0,0.00035973,5]
[392345615,1761381045122,-516.41951621,0.00035973,5]
[392345616,1761381045131,-200.0,0.00035973,5]
[392345617,1761381045140,-501.13924348,0.00035973,5]
[392345618,1761381045150,-8802.13463558,0.0003598,2]
[392345628,1761381357454,172.2,0.00013699,2]
[392345629,1761381361201,2934.0,0.00018,2]
[392345631,1761381440213,4727.20460154,0.00036706,120]
[392345632,1761381670126,14755.23,0.00036706,30]
[392345639,1761382232104,-181.92349875,0.00020187,2]
[392345640,1761382232114,-172.2,0.00020187,2]
[392345641,1761382232123,-172.2,0.00026676,2]
[392345642,1761382232132,-1655.86463605,0.000304,2]
[392345643,1761382232142,-168.0,0.00032264,2]
[392345644,1761382232151,-1000.0,0.00032423,2]
[392345645,1761382232160,-181.92349875,0.00032423,2]
[392345646,1761382232169,-537.105,0.00032598,33]
[392345647,1761382232178,-166.66,0.00032598,30]
[392345648,1761382232188,-1200.0,0.00033013,3]
[392345649,1761382232197,-300.0,0.00033013,2]
[392345650,1761382232206,-2054.0,0.00033014,2]
[392345651,1761382232215,-572.0,0.00033014,2]
[392345652,1761382232224,-819.0,0.00033014,2]
[392345654,1761382232233,-3414.0,0.00033014,2]
[392345655,1761382232244,-1312.0,0.00033014,2]
[392345657,1761382232253,-606.0,0.00033014,2]
[392345659,1761382232262,-1592.0,0.00033014,2]
[392345661,1761382232271,-818.0,0.00033014,2]
[392345663,1761382232280,-1270.0,0.00033014,2]
[392345665,1761382232289,-3488.0,0.00033014,2]
[392345667,1761382232298,-3244.42752559,0.00033014,2]
[392345759,1761382237841,-3213.57247441,0.00033014,2]
[392345760,1761382237851,-558.0,0.00033014,2]
[392345761,1761382237860,-5007.943,0.00033014,2]
[392345762,1761382237868,-150.0,0.00033016,7]
[392345763,1761382237877,-172.2,0.00033165,2]
[392345764,1761382237887,-2691.42,0.00033223,2]
[392345765,1761382237895,-510.5854371,0.00033245,30]
[392345766,1761382237904,-159.71,0.00033258,2]
[392345767,1761382237913,-166.66,0.00033285,30]
[392345768,1761382237923,-3071.60417456,0.000335,2]
[392345769,1761382237931,-150.0,0.00033513,3]
[392345770,1761382237941,-151.0,0.0003358,2]
[392345771,1761382237950,-151.0,0.0003358,2]
[392345772,1761382237959,-151.0,0.0003358,2]
[392345773,1761382237968,-151.0,0.0003358,2]
[392345774,1761382237976,-151.0,0.0003358,2]
[392345775,1761382237986,-151.0,0.0003358,2]
[392345776,1761382237995,-151.0,0.0003358,2]
[392345777,1761382238004,-151.0,0.0003358,2]
[392345778,1761382238013,-151.0,0.0003358,2]
[392345779,1761382238022,-151.0,0.0003358,2]
[392345780,1761382238031,-151.0,0.0003358,2]
[392345781,1761382238042,-151.0,0.0003358,2]
[392345782,1761382238051,-151.0,0.0003358,2]
[392345783,1761382238060,-151.0,0.0003358,2]
[392345784,1761382238069,-151.0,0.0003358,2]
[392345785,1761382238079,-151.0,0.0003358,2]
[392345786,1761382238088,-151.0,0.0003358,2]
[392345787,1761382238097,-151.0,0.0003358,2]
[392345788,1761382238106,-151.0,0.0003358,2]
[392345790,1761382238114,-151.0,0.0003358,2]
[392345792,1761382238123,-151.0,0.0003358,2]
[392345794,1761382238132,-210.52533057,0.0003358,2]
[392345796,1761382238141,-151.0,0.0003358,2]
[392345798,1761382238151,-151.0,0.0003358,2]
[392345800,1761382238160,-151.0,0.0003358,2]
[392345801,1761382238170,-151.0,0.0003358,2]
[392345803,1761382238179,-151.0,0.0003358,2]
[392345805,1761382238188,-151.0,0.0003358,2]
[392345807,1761382238198,-151.0,0.0003358,2]
[392345809,1761382238208,-151.0,0.0003358,2]
[392345811,1761382238217,-151.0,0.0003358,2]
[392345813,1761382238226,-151.0,0.0003358,2]
[392345815,1761382238235,-151.0,0.0003358,2]
[392345817,1761382238245,-151.0,0.0003358,2]
[392345819,1761382238254,-151.0,0.0003358,2]